Cogmind - Beta 16 @@@ ROGUE MODE // 2025.11.27 @ 00:32:29 Player: JuustuToug Result: Exoskeleton Destroyed Performance ------------- Evolutions (9) 4500 Regions Visited (17) 3400 Robots Destroyed (133) 665 Value Destroyed (4242) 4242 Prototype IDs (45) 900 Alien Tech Used (11) 2200 Bonus (19427) 19427 TOTAL SCORE: 35334 Bonus ------- Triggered Max Security 3000 High Alert Combat Kills 576 Follower Combat Kills 459 Entered Garrisons 400 Used RIF Installer 500 Used Core Reset Matrix 3000 Scanned by Researcher 500 Pursued by Intercept 1000 Integrated Exoskeleton 5000 Met MAIN.C 5000 Friendly Fire -8 Cogmind --------- Core Integrity 0/1850 Matter 218/300 Energy 435/450 System Corruption 0% +Membrane Temperature Hot (211) +ITN Movement Walking (90) Ox1 Location -1/Command Parts ------- > --- POWER (1) -------- Enhanced Fission Core > --- PROPULSION (3) --- Sigix Exoskeleton > --- UTILITY (4) ------ Improved Targeting Computer Improved Reaction Control System Improved Hacking Suite Experimental System Shield > --- WEAPON (5) ------- Sigix Sheargun Sigix Sheargun Enhanced Nova Cannon Enhanced Nova Cannon Enhanced Nova Cannon > --- INVENTORY (5) ---- Light Particle Reactor Peak State ------------ > --- POWER ------------ Enhanced Fission Core > --- PROPULSION ------- Sigix Exoskeleton > --- UTILITY ---------- Improved Targeting Computer Improved Reaction Control System Improved Hacking Suite Experimental System Shield > --- WEAPON ----------- Sigix Sheargun Sigix Sheargun Enhanced Nova Cannon Sigix Terminator > --- INVENTORY -------- Light Particle Reactor Enhanced Nova Cannon Enhanced Nova Cannon [Rating: 250] Favorites ----------- Power Improved Ion Engine Engine Improved Ion Engine Power Core Light Nuclear Core Reactor Light Antimatter Reactor Propulsion Light Treads Treads Light Treads Leg Sigix Exoskeleton Hover Unit Antigrav System Flight Unit Biomechanical Wings Utility Hacking Suite Device Improved Terrain Scanner Storage High-capacity Storage Unit Processor Terrain Scan Processor Hackware Hacking Suite Weapon Heavy Assault Rifle Energy Gun Medium Laser Energy Cannon Heavy Neutron Cannon Ballistic Gun Heavy Assault Rifle Ballistic Cannon Compact Linear Accelerator Launcher Missile Launcher Special Weapon Remote Datajack Impact Weapon Heavy Hammer Slashing Weapon Power Sword Build | -11 -10 -10 -9 -8 -7 -7 -7 -7 -6 -5 -4 -3 -3 -3 -2 -1 -1 ------- Run | Yrd Mat Min Mat Mat Fac Gar Fac Gar Fac Fac Fac Res Qua Sec Res Acc Com Slots Evolved 18 | . . . 2 2 2 . . . 2 2 2 2 . . 2 2 . Power . | . . . . . . . . . . . . . . . . . . Propulsion 4 | . . . 1 1 1 . . . 1 . . . . . . . . Utility 11 | . . . 1 1 1 . . . 1 2 2 2 . . . 1 . Weapon 3 | . . . . . . . . . . . . . . . 2 1 . Parts Attached 167 | 6 11 . 27 23 14 2 2 2 16 11 5 8 8 12 11 6 3 Power 16 | 1 2 . 3 3 1 1 . . 1 1 1 1 . 1 . . . Engine 7 | 1 . . 3 3 . . . . . . . . . . . . . Core 7 | . 2 . . . 1 1 . . 1 . . 1 . 1 . . . Reactor 2 | . . . . . . . . . . 1 1 . . . . . . Propulsion 50 | 2 2 . 15 11 4 . . . 6 5 1 2 2 . . . . Treads 29 | 2 2 . 14 11 . . . . . . . . . . . . . Leg . | . . . . . . . . . . . . . . . . . . Wheel . | . . . . . . . . . . . . . . . . . . Hover 2 | . . . . . . . . . 1 . . 1 . . . . . Flight 19 | . . . 1 . 4 . . . 5 5 1 1 2 . . . . Utility 65 | 1 4 . 4 2 6 1 1 1 8 5 3 2 4 8 9 5 1 Device 23 | . 2 . 1 1 2 . . . . 3 1 . 2 3 5 2 1 Storage 5 | 1 1 . 2 . 1 . . . . . . . . . . . . Processor 20 | . 1 . 1 1 1 . . 1 3 2 1 . . 4 4 1 . Hackware 17 | . . . . . 2 1 1 . 5 . 1 2 2 1 . 2 . Protection . | . . . . . . . . . . . . . . . . . . Artifact . | . . . . . . . . . . . . . . . . . . Weapon 36 | 2 3 . 5 7 3 . 1 1 1 . . 3 2 3 2 1 2 Energy Gun 5 | 1 2 . . . 1 . . . . . . . . 1 . . . Energy Cannon 5 | . . . . 1 . . . . . . . . . . 1 1 2 Ballistic Gun 10 | 1 1 . 4 4 . . . . . . . . . . . . . Ballistic Cannon 1 | . . . . . . . . . . . . . . . 1 . . Launcher 4 | . . . . 1 . . . . . . . 2 1 . . . . Special Weapon 1 | . . . . . . . 1 . . . . . . . . . . Impact Weapon 2 | . . . 1 1 . . . . . . . . . . . . . Slashing Weapon 8 | . . . . . 2 . . 1 1 . . 1 1 2 . . . Piercing Weapon . | . . . . . . . . . . . . . . . . . . Special Melee Weapon . | . . . . . . . . . . . . . . . . . . Unidentified Prototypes 19 | . . . 2 1 . . . . . 4 . 3 3 2 3 1 . Parts Lost 27 | . 3 . 2 2 . . . 7 2 3 . 1 1 5 . 1 . Power 1 | . . . . 1 . . . . . . . . . . . . . Propulsion 13 | . 1 . 1 . . . . 5 2 2 . . . 2 . . . Utility 8 | . . . . 1 . . . 2 . 1 . . 1 2 . 1 . Weapon 5 | . 2 . 1 . . . . . . . . 1 . 1 . . . Highest Loss Streak 5 | . 2 . 1 1 . . . 5 1 1 . 1 1 5 . 1 . To Critical Strikes . | . . . . . . . . . . . . . . . . . . Average Backups 12 | 1 10 14 18 19 10 10 9 8 4 4 4 4 4 3 4 4 3 Power 1 | . 2 2 1 . . . . . . . . 1 1 1 2 1 1 Propulsion 3 | . 2 2 5 6 . . . . . . . . . . . . . Utility 4 | . 3 5 6 6 5 5 4 4 1 2 1 2 1 . . . . Weapon 3 | . 3 4 5 5 3 3 3 2 1 . 1 1 1 1 2 2 2 Tool/Special . | . . . . . . . . . . . . . . . . . . Unused Backups 40 | . 1 3 11 8 4 1 . 4 2 1 1 1 1 1 . . 1 Power 4 | . . . 2 . . . . . . . . . 1 . . . 1 Propulsion 5 | . . 1 1 2 1 . . . . . . . . . . . . Utility 17 | . . 1 2 4 1 1 . 3 2 . 1 1 . 1 . . . Weapon 13 | . 1 1 6 2 2 . . . . 1 . . . . . . . Tool/Special 1 | . . . . . . . . 1 . . . . . . . . . Average Slot Usage (%) 92 | . 99 100 97 98 97 100 100 74 57 89 83 93 90 75 70 76 76 Engine 5 | . 5 . 10 8 . . . . . . . . . . . . . Core 3 | . 8 14 . . 6 7 7 3 2 4 4 1 4 6 9 7 7 Treads 21 | . 28 28 32 35 1 . . . . . . . . . . . . Flight 5 | . . . . . 35 38 38 24 10 29 21 23 25 11 . . . Device 10 | . 8 14 12 13 8 . . . 5 10 10 9 13 10 11 7 7 Storage 7 | . 14 14 11 9 7 7 7 4 . . . . . . . . . Processor 8 | . 4 . 9 13 9 7 1 2 8 4 9 9 4 7 13 10 7 Hackware 7 | . . . . . 10 22 28 27 24 29 30 37 36 19 . 10 15 Energy Gun 5 | . 13 14 3 . 5 7 . . . . . . . 7 18 15 15 Energy Cannon 1 | . . . . . . . . . . . . . . . 6 13 14 Ballistic Gun 8 | . 14 14 13 12 1 . . . . . . . . . . . . Impact Weapon 1 | . . . 2 5 . . . . . . . . . . . . . Slashing Weapon 1 | . . . . . 6 7 6 6 4 5 5 6 4 4 . . . Peak Build Rating 250 | 6 13 12 19 30 35 35 35 33 45 77 80 103 128 208 226 240 250 Average Rating 50 | 4 10 12 16 25 32 34 33 24 31 64 71 93 120 156 217 232 234 On Entrance 70 | . 6 12 12 17 29 35 35 33 8 45 62 80 102 128 203 226 233 Avg Prop Armor Cover (%) 7 | . . . . . . . . . 6 5 . 10 . . . . . Naked Turns . | . . . . . . . . . . . . . . . . . . Heaviest Build 69 | 13 30 29 54 60 24 23 24 21 11 12 17 30 28 30 48 69 68 Greatest Support 85 | 40 40 40 63 85 25 25 25 25 17 35 30 36 43 60 60 60 60 Greatest Overweight (x) 1 | . . . 1 1 . . . 1 1 . . . . . . 1 1 Average Overweight (x) . | . . . . . . . . . . . . . . . . . . Largest Inventory Capacity 20 | 8 15 15 20 20 20 10 10 10 5 5 5 5 5 5 5 5 5 Average Capacity 13 | 6 13 15 18 20 10 10 10 8 5 5 5 5 5 5 5 5 5 Most Carried 20 | 3 15 15 20 20 20 10 10 10 5 5 5 5 5 5 5 5 5 Average Carried 13 | 1 11 14 18 19 9 10 9 8 4 4 4 4 4 4 5 5 3 Final Capacity 20 | 8 15 15 20 20 10 10 10 5 5 5 5 5 5 5 5 5 5 Final Carried 20 | 3 15 14 20 20 10 10 10 5 5 5 5 5 5 5 5 5 1 Class Distribution -------------------- 41% | Scavenger-Mutant 26% | Mutant 10% | Alien-Sigix 7% | Wizard-Scout 5% | Hacker-Sprinter 3% | Hacker-Mutant Dominant Class ---------------- Mutant | -10/Materials Scavenger-Mutant | -10/Mines Scavenger-Mutant | -9/Materials Scavenger-Mutant | -8/Materials Hacker-Sprinter | -7/Factory Hacker-Sprinter | -7/Garrison Hacker-Sprinter | -7/Factory Hacker-Sprinter | -7/Garrison Hacker-Mutant | -6/Factory Hacker-Scout | -5/Factory Wizard-Scout | -4/Factory Wizard-Scout | -3/Research Wizard-Scout | -3/Quarantine Alien-Sigix | -3/Section 7 Alien-Sigix | -2/Research Alien-Sigix | -1/Access Alien-Sigix | -1/Command Resources | -11 -10 -10 -9 -8 -7 -7 -7 -7 -6 -5 -4 -3 -3 -3 -2 -1 -1 ----------- Run | Yrd Mat Min Mat Mat Fac Gar Fac Gar Fac Fac Fac Res Qua Sec Res Acc Com Matter Collected 3084 | 242 248 6 678 592 . 7 71 79 88 162 117 75 251 306 20 142 . Remotely . | . . . . . . . . . . . . . . . . . . Salvage Created 5111 | . 723 30 1091 1721 . 29 71 . 161 162 117 75 291 334 . 306 . Parts 279 | . 47 2 63 72 . 4 9 . 18 7 3 3 21 15 . 15 . Haulers Intercepted 13 | . 2 . 5 6 . . . . . . . . . . . . . Recyclers Shooed 3 | . . . 1 2 . . . . . . . . . . . . . Parts Field Recycled . | . . . . . . . . . . . . . . . . . . Retrieved Matter . | . . . . . . . . . . . . . . . . . . Parts Self-Destructed . | . . . . . . . . . . . . . . . . . . Prevented . | . . . . . . . . . . . . . . . . . . Parts Restored . | . . . . . . . . . . . . . . . . . . Kills | -11 -10 -10 -9 -8 -7 -7 -7 -7 -6 -5 -4 -3 -3 -3 -2 -1 -1 ------- Run | Yrd Mat Min Mat Mat Fac Gar Fac Gar Fac Fac Fac Res Qua Sec Res Acc Com Combat Hostiles Destroyed 76 | . 15 2 20 21 . 3 3 . 4 . . . . 4 . 4 . Melee 13 | . . . 2 7 . . . . 4 . . . . . . . . Guns 43 | . 15 2 15 5 . . . . . . . . . 4 . 2 . Cannons 2 | . . . . . . . . . . . . . . . . 2 . AOE 6 | . . . . . . 3 3 . . . . . . . . . . Classes Destroyed 15 | . 7 . 3 2 . . . . . . . . . 3 . . . Worker 11 | . . . 2 2 . . . . 1 . . . 5 . . 1 . Builder 5 | . 1 . . 1 . . 1 . . . . 1 . . . 1 . Tunneler 5 | . 1 . 1 1 . . 1 . . 1 . . . . . . . Hauler 13 | . 2 . 5 6 . . . . . . . . . . . . . Recycler 6 | . . . . 4 . . . . . 1 . . 1 . . . . Operator 8 | . 1 . 1 1 . . . . 2 . 1 . 2 . . . . Watcher 8 | . 1 . 3 3 . . . . . . . 1 . . . . . Swarmer 21 | . 3 2 6 . . 3 3 . 4 . . . . . . . . Cutter 2 | . . . . . . . . . . . . . . 2 . . . Grunt 32 | . 12 . 7 12 . . . . . . . . . 1 . . . Brawler 1 | . . . . . . . . . . . . . . 1 . . . Duelist 2 | . . . 1 1 . . . . . . . . . . . . . Sentry 11 | . . . 6 5 . . . . . . . . . . . . . Hunter 3 | . . . . 3 . . . . . . . . . . . . . Tracker 4 | . . . . . . . . . . . . . . . . 4 . Investigator 1 | . . . . . . . . . . . . . . 1 . . . Best Kill Streak 6 | . 3 2 5 5 . 3 4 . 3 2 . 1 6 3 . 3 . Combat Bots Only 3 | . 3 2 3 3 . 3 3 . 3 . . . . 2 . 2 . Max Kills in Single Turn 4 | . 2 1 1 1 . 2 4 . 1 1 1 1 1 2 . 2 . Gunslinging 1 | . 1 . . . . . . . . . . . . . . . . Exploded 3 | . . . . . . 2 3 . . . . . . . . . . Melee 1 | . . . 1 1 . . . . 1 . . . . . . . . Uniques/NPCs Destroyed . | . . . . . . . . . . . . . . . . . . Combat | -11 -10 -10 -9 -8 -7 -7 -7 -7 -6 -5 -4 -3 -3 -3 -2 -1 -1 -------- Run | Yrd Mat Min Mat Mat Fac Gar Fac Gar Fac Fac Fac Res Qua Sec Res Acc Com Hostile Shots Fired 1710 | . 84 20 104 103 . 12 36 103 71 21 14 15 4 447 86 434 156 Missed 812 | . 20 7 29 29 . 4 20 48 39 9 8 12 2 243 63 225 54 Hits 898 | . 64 13 75 74 . 8 16 55 32 12 6 3 2 204 23 209 102 Melee 33 | . . . 3 2 . . . . . . . . . 28 . . . Projectile 865 | . 64 13 72 72 . 8 16 55 32 12 6 3 2 176 23 209 102 AOE 18 | . . . . . . . . . . 1 . . . 3 . 4 10 Critical Strikes 57 | . . . 6 2 . . . 2 . . . . . 22 2 11 12 Damage Taken 11180 | . 743 100 1327 944 . 172 147 787 440 259 121 68 62 2023 266 2087 1634 Core 3537 | . 115 19 288 160 . 12 43 617 309 105 41 25 . 566 92 641 504 Absorbed by Shields 863 | . . . . 176 . 17 9 23 . . 25 . . 581 . 32 . Ignored by Resistances 7675 | . . . . . . . . . . . . . . 2015 325 2859 2476 Regen/Repaired (Parts) 174 | . . . 59 . . . . . . . . . 74 41 . . . Core Remaining (%) 65 | 100 . 46 28 70 . . . 4 63 89 96 . . 61 94 . . Volleys Fired 274 | . 90 6 84 42 . 2 8 . . . . . . 11 3 20 8 Largest 5 | . 2 2 2 2 . 1 1 . . . . . . 2 3 4 5 Hottest 560 | . 85 70 73 56 . 36 36 . . . . . . 200 310 430 560 Shots Fired 563 | . 169 12 165 78 . 2 8 . . . . . . 21 6 68 34 Gun 501 | . 169 12 165 75 . . . . . . . . . 21 5 40 14 Cannon 51 | . . . . 3 . . . . . . . . . . 1 28 19 Launcher 4 | . . . . . . 2 1 . . . . . . . . . 1 Special 7 | . . . . . . . 7 . . . . . . . . . . Kinetic 297 | . 89 6 127 75 . . . . . . . . . . . . . Thermal 173 | . 80 6 38 . . . . . . . . . . . 1 28 20 Explosive 3 | . . . . . . 2 1 . . . . . . . . . . Electromagnetic 3 | . . . . 3 . . . . . . . . . . . . . Slashing 80 | . . . . . . . . . . . . . . 21 5 40 14 Robot Hit Streak 15 | . 15 5 11 11 . . 6 . . . . . . 3 . 6 14 Robot Miss Streak 6 | . 6 1 5 4 . . 1 . . . . . . 3 . 4 1 Penetration Max 1 | . . . . . . . . . . . . . . 1 . 1 . Secondary Targets 2 | . 1 . . . . . . . . . . . . 1 . . . Max Gunslinging Chain 1 | . 1 . . . . . . . . . . . . 1 . . . Shots Hit Robots 395 | . 107 8 116 83 . . 8 . 9 2 2 2 8 13 . 13 24 Core Hits 176 | . 44 3 42 31 . 5 4 2 7 1 2 2 3 9 1 11 9 Critical Kills 6 | . 1 . 2 3 . . . . . . . . . . . . . Critical Parts Destroyed 12 | . 1 . 2 9 . . . . . . . . . . . . . Critical Strikes 27 | . 5 2 6 12 . . . . . . . . . 1 . 1 . Burn 7 | . 3 2 2 . . . . . . . . . . . . . . Destroy 3 | . 2 . 1 . . . . . . . . . . . . . . Smash 15 | . . . 3 12 . . . . . . . . . . . . . Sever 2 | . . . . . . . . . . . . . . 1 . 1 . Melee Attacks 169 | . . . 17 60 4 3 6 12 19 6 7 8 13 14 . . . Impact 77 | . . . 17 60 . . . . . . . . . . . . . Slashing 92 | . . . . . 4 3 6 12 19 6 7 8 13 14 . . . Piercing . | . . . . . . . . . . . . . . . . . . Sneak Attacks 23 | . . . . 6 . . 1 . 4 2 1 1 8 . . . . Combat Hostiles 1 | . . . . 1 . . . . . . . . . . . . . Follow-up Attacks . | . . . . . . . . . . . . . . . . . . Damage Inflicted 13916 | . 1227 72 1846 2781 . 209 322 41 581 179 205 127 1302 1422 94 1249 2259 Guns 6017 | . 1219 72 1581 664 . . . . . . . . . 1218 . 659 604 Cannons 1033 | . . . . 86 . . . . . . . . . . . 292 655 Explosions 1489 | . . . . . . 209 222 . . . . . . . . 58 1000 Melee 4987 | . . . 258 2031 . . 100 . 581 179 205 127 1302 204 . . . Ramming 390 | . 8 . 7 . . . . 41 . . . . . . 94 240 . Kinetic 2354 | . 449 35 1206 664 . . . . . . . . . . . . . Thermal 3187 | . 770 37 375 . . . . . . . . . . . . 350 1655 Explosive 431 | . . . . . . 209 222 . . . . . . . . . . Electromagnetic 86 | . . . . 86 . . . . . . . . . . . . . Impact 2289 | . . . 258 2031 . . . . . . . . . . . . . Slashing 5179 | . . . . . . . 100 . 581 179 205 127 1302 1422 . 659 604 Piercing . | . . . . . . . . . . . . . . . . . . Highest Corruption 3 | . . . 3 . . . . 1 . . . . . 1 . . . Average Corruption 2 | . . . 3 . . . . 1 . . . . . 1 . . . Corruption Purged . | . . . . . . . . . . . . . . . . . . Corruption Blocked . | . . . . . . . . . . . . . . . . . . Effects 8 | . . . 6 . . . . 1 . . . . . 1 . . . Message Errors 3 | . . . 3 . . . . . . . . . . . . . . Matter Fused 1 | . . . . . . . . . . . . . . 1 . . . Energy Discharges 1 | . . . 1 . . . . . . . . . . . . . . Parts Rejected 1 | . . . . . . . . 1 . . . . . . . . . Parts Fused 1 | . . . 1 . . . . . . . . . . . . . . Data Loss (minor) 1 | . . . 1 . . . . . . . . . . . . . . Overload Shots . | . . . . . . . . . . . . . . . . . . Overflow Damage 1541 | . . . 42 718 . . 18 . 51 49 . . 594 22 . 47 . Projectiles . | . . . . . . . . . . . . . . . . . . Explosions 18 | . . . . . . . 18 . . . . . . . . . . Melee 1523 | . . . 42 718 . . . . 51 49 . . 594 22 . 47 . Knockbacks 10 | . . . 1 7 . . . . . . . . . . . 2 . Impact 10 | . . . 1 7 . . . . . . . . . . . 2 . Kinetic . | . . . . . . . . . . . . . . . . . . Secondary . | . . . . . . . . . . . . . . . . . . Self-Inflicted Damage 143 | . . . . . . 67 . 17 . . . . . . . 59 . Shots 4 | . . . . . . 2 . . . . . . . . . 2 . Rammed 19 | . 2 . 1 . . . . 16 . . . . . . . . . Targets Rammed 25 | . 2 . 1 . . . . 16 . . . . . . 2 4 . Kicked 6 | . . . . . . . . . . . . . . . 2 4 . Crushed . | . . . . . . . . . . . . . . . . . . Highest Temperature 422 | . 322 116 138 22 . . 7 20 . 422 . . . 246 68 171 193 Average Temperature 86 | . 112 56 50 12 . . 4 20 . 211 . . . 21 51 56 126 Received Heat Transfer 2439 | . 387 . 420 214 . . 43 93 24 30 27 9 21 453 90 147 481 Thermoelectric Energy+ 182 | . . . . . . . . . . . . . . . . . 182 Effects 3 | . 3 . . . . . . . . . . . . . . . . Interference 2 | . 2 . . . . . . . . . . . . . . . . Matter Decay 1 | . 1 . . . . . . . . . . . . . . . . Siege Activations . | . . . . . . . . . . . . . . . . . . Martial Activations . | . . . . . . . . . . . . . . . . . . Shielding Activations . | . . . . . . . . . . . . . . . . . . Robots Disrupted . | . . . . . . . . . . . . . . . . . . Combat Hostiles . | . . . . . . . . . . . . . . . . . . Robots Corrupted 16 | . . . 3 12 . . . . . . . . . . . 1 . Combat Hostiles 12 | . . . 3 9 . . . . . . . . . . . . . Parts Fried 22 | . . . 4 16 . . . . . . . . . . . 2 . Impact Corruptions 25 | . . . 3 20 . . . . . . . . . . . 2 . Robots Melted . | . . . . . . . . . . . . . . . . . . Combat Hostiles . | . . . . . . . . . . . . . . . . . . Parts Melted 4 | . 1 . 3 . . . . . . . . . . . . . . Heat Transferred 4165 | . 2257 259 1258 . . . . . . . . . . . . 198 193 Parts Sabotaged . | . . . . . . . . . . . . . . . . . . Parts Stolen . | . . . . . . . . . . . . . . . . . . Parts Stripped . | . . . . . . . . . . . . . . . . . . Power Chain Reactions . | . . . . . . . . . . . . . . . . . . Alert | -11 -10 -10 -9 -8 -7 -7 -7 -7 -6 -5 -4 -3 -3 -3 -2 -1 -1 ------- Run | Yrd Mat Min Mat Mat Fac Gar Fac Gar Fac Fac Fac Res Qua Sec Res Acc Com Maximum Alert Level 5 | . . . 1 1 . 1 1 1 1 . . . . 5 5 5 5 Low Security (%) 62 | 100 100 100 63 43 100 77 16 58 19 100 100 100 100 52 . . . Level 1 26 | . . . 36 56 . 22 83 41 80 . . . . . . . . Level 2 . | . . . . . . . . . . . . . . . . . . Level 3 . | . . . . . . . . . . . . . . . 7 4 . Level 4 . | . . . . . . . . . . . . . . . 15 3 . Level 5 1 | . . . . . . . . . . . . . . . . . 100 High Security . | . . . . . . . . . . . . . . . . . . Max Security 8 | . . . . . . . . . . . . . . 47 77 91 . Peak Influence 4215 | . 106 30 367 351 143 281 245 365 338 96 86 121 82 1901 1632 2763 4215 Initial 1768 | . . . . 141 130 65 147 157 191 90 26 45 42 27 1100 1100 1768 Average 324 | . 30 4 155 229 116 139 209 222 273 77 42 78 53 835 1377 2032 2336 Influence Increases 9545 | . 478 40 949 750 44 216 148 278 294 105 110 191 182 538 307 2213 2702 Destroy 0b10 Robot/C 2220 | . 300 40 580 420 . 60 60 . 80 . . . . 100 100 360 120 Destroy 0b10 Robot/NC 285 | . 30 . 75 90 . . 10 . 5 10 5 10 30 . . 10 10 Destroy Leader 568 | . 66 . 180 138 . . 10 . 10 . . 2 . 10 . 100 52 Allied During Kill 202 | . . . 34 . . . . . . . . . . . 39 111 18 Successful Hack 331 | . 22 . 28 36 28 16 . 5 74 14 24 19 43 14 . . 8 Disable Machine 435 | . . . 30 30 15 . 30 . 15 15 15 15 45 75 . 105 45 Anti-Garrison Action 350 | . . . . . . 100 . 100 . . . . . . . 150 . Destroy Structure 2889 | . . . 7 6 1 25 8 8 5 6 6 10 4 24 33 312 2434 Partial Spotted 150 | . . . . . . . . . 15 45 . 15 . 45 15 15 . Lose Combat Pursuer 2115 | . 60 . 15 30 . 15 30 165 90 15 60 120 60 270 120 1050 15 Influence Decreases 8111 | . 478 40 613 798 238 29 204 138 474 235 79 201 208 167 1243 1671 1295 Entered New Map 3409 | . . . . 195 158 29 134 68 174 95 29 41 34 23 833 601 995 Time Decay 2509 | . 408 40 563 583 80 . 70 . 170 110 50 150 120 75 10 20 60 Search Patrol Dispatched 100 | . . . . . . . . . 100 . . . . . . . . Lost Part 255 | . 30 . 10 20 . . . 70 20 30 . 10 10 45 . 10 . Lost Ally 1740 | . . . 40 . . . . . 10 . . . . 10 400 1040 240 Purge Threat 98 | . 40 . . . . . . . . . . . 44 14 . . . Squads Dispatched 82 | . 2 . 2 2 1 . 1 . 1 2 1 2 1 14 9 42 2 Investigation 9 | . 1 . 1 1 1 . 1 . . . . 1 1 . 1 1 . Extermination 4 | . . . . . . . . . 1 1 . 1 . . . . 1 Reinforcement 10 | . 1 . 1 1 . . . . . 1 1 . . 1 . 3 1 Assault 53 | . . . . . . . . . . . . . . 12 8 33 . Garrison 3 | . . . . . . . . . . . . . . . . 3 . Intercept 3 | . . . . . . . . . . . . . . 1 . 2 . Searches Triggered 1 | . . . . . . . . . 1 . . . . . . . . Construction Impeded . | . . . . . . . . . . . . . . . . . . Haulers Reinforced . | . . . . . . . . . . . . . . . . . . Active Scanning Responses . | . . . . . . . . . . . . . . . . . . Cargo Convoy Interrupts . | . . . . . . . . . . . . . . . . . . Stealth | -11 -10 -10 -9 -8 -7 -7 -7 -7 -6 -5 -4 -3 -3 -3 -2 -1 -1 --------- Run | Yrd Mat Min Mat Mat Fac Gar Fac Gar Fac Fac Fac Res Qua Sec Res Acc Com Distress Signals 21 | . 5 . 1 3 . . . . 2 1 . 2 1 . . 6 . Communications Jammed . | . . . . . . . . . . . . . . . . . . Distress Signals . | . . . . . . . . . . . . . . . . . . Times Spotted 391 | . 37 3 35 34 2 7 12 14 20 8 4 15 7 72 18 88 15 Peak Tracking Total 36 | . 6 3 4 5 1 4 4 7 7 5 5 10 5 36 14 27 10 Tactical Retreats 53 | . 4 . 1 2 . 1 2 3 4 1 2 4 2 6 2 18 1 Traps | -11 -10 -10 -9 -8 -7 -7 -7 -7 -6 -5 -4 -3 -3 -3 -2 -1 -1 ------- Run | Yrd Mat Min Mat Mat Fac Gar Fac Gar Fac Fac Fac Res Qua Sec Res Acc Com Traps Triggered 15 | . 1 . 1 2 1 2 1 1 . 1 2 . . . . 3 . Indirectly . | . . . . . . . . . . . . . . . . . . Trap Hack Attempts . | . . . . . . . . . . . . . . . . . . Triggered . | . . . . . . . . . . . . . . . . . . Disarmed 6 | . . . . . . . . . . . . . . 6 . . . Reprogrammed 1 | . . . . . . . . . . . . . . 1 . . . Reused . | . . . . . . . . . . . . . . . . . . Traps Extracted . | . . . . . . . . . . . . . . . . . . Installed . | . . . . . . . . . . . . . . . . . . Triggered . | . . . . . . . . . . . . . . . . . . Machines | -11 -10 -10 -9 -8 -7 -7 -7 -7 -6 -5 -4 -3 -3 -3 -2 -1 -1 ---------- Run | Yrd Mat Min Mat Mat Fac Gar Fac Gar Fac Fac Fac Res Qua Sec Res Acc Com Machines Disabled 33 | . . . 2 2 1 1 2 1 1 1 1 1 3 6 . 8 3 Max in Single Turn 3 | . . . 1 1 1 1 1 1 1 1 1 1 1 1 . 2 3 Garrison Access 4 | . . . . . . . . . . 1 . . 1 . 1 1 . Garrison Relay 2 | . . . . . . 1 . 1 . . . . . . . . . Energy Cycler 2 | . . . . . . . . . . . . . . . . 2 . Machines Repaired . | . . . . . . . . . . . . . . . . . . Machines Dismantled . | . . . . . . . . . . . . . . . . . . Machines Sabotaged . | . . . . . . . . . . . . . . . . . . Overloaded Fab Kills . | . . . . . . . . . . . . . . . . . . Hacking | -11 -10 -10 -9 -8 -7 -7 -7 -7 -6 -5 -4 -3 -3 -3 -2 -1 -1 --------- Run | Yrd Mat Min Mat Mat Fac Gar Fac Gar Fac Fac Fac Res Qua Sec Res Acc Com Machines Accessed 83 | . 7 . 13 12 4 1 3 2 9 8 3 3 8 6 1 1 2 Terminals 58 | . 6 . 10 9 1 1 1 2 6 4 2 2 6 6 . . 2 Fabricators 4 | . . . . . 2 . . . . 1 . 1 . . . . . Repair Stations 4 | . 1 . 2 . . . . . . . . . 1 . . . . Recycling Units 6 | . . . . . . . 1 . 2 2 1 . . . . . . Scanalyzers 5 | . . . 1 2 . . . . 1 . . . . . 1 . . Garrison Access 6 | . . . . 1 1 . 1 . . 1 . . 1 . . 1 . Total Hacks 347 | . 23 . 38 53 15 5 6 4 41 38 13 14 45 46 2 2 2 Successful 194 | . 16 . 26 31 8 1 2 1 26 17 7 8 19 30 . . 2 Failed 151 | . 7 . 12 21 7 4 4 3 14 21 6 6 26 16 2 2 . Catastrophic 25 | . 1 . . 3 . 1 1 . 2 7 1 1 3 5 . . . Database Lockouts 2 | . . . . 1 . . . . 1 . . . . . . . . Manual 145 | . 15 . 18 11 4 5 2 . 13 24 8 8 19 18 . . . Terminals 263 | . 20 . 32 25 7 5 2 4 29 27 10 12 42 46 . . 2 Fabricators 13 | . . . . . 6 . . . . 5 . 2 . . . . . Repair Stations 9 | . 3 . 4 . . . . . . . . . 2 . . . . Recycling Units 13 | . . . . . . . 3 . 2 5 3 . . . . . . Scanalyzers 38 | . . . 2 24 . . . . 10 . . . . . 2 . . Garrison Access 11 | . . . . 4 2 . 1 . . 1 . . 1 . . 2 . Terminal Hacks 84 | . 4 . 11 5 1 1 . 1 9 4 2 4 12 28 . . 2 Record 2 | . . . . . . . . . . . . . . 2 . . . Part Schematic 5 | . 1 . . . . . . . . . 1 1 2 . . . . Robot Analysis 1 | . . . . . . . . . 1 . . . . . . . . Prototype ID Bank 11 | . 1 . 4 . . . . . 1 1 . 1 2 1 . . . Open Door 5 | . . . . . . . . 1 . . . . 1 2 . . 1 Level Access Points 6 | . . . . . . . . . 1 1 1 . 1 2 . . . Branch Access Points 7 | . 1 . 1 1 1 . . . 1 . . 1 . 1 . . . Emergency Access Points 4 | . . . . 1 . . . . 1 . . . . 2 . . . Machine Index 2 | . . . . . . . . . 1 1 . . . . . . . Terminal Index 6 | . . . 1 1 . . . . 1 1 . . 1 1 . . . Fabricator Index 1 | . . . . . . . . . . . . . 1 . . . . Garrison Index 2 | . . . . . . . . . . . . . . 2 . . . Unreport Threat 3 | . 1 . . . . . . . . . . . 1 1 . . . Locate Traps 6 | . . . 2 1 . . . . 1 . . . . 2 . . . Disarm Traps 2 | . . . . . . . . . . . . . . 2 . . . Reprogram Traps 3 | . . . . . . . . . . . . . . 3 . . . Dispatch Records 2 | . . . 1 . . . . . . . . . . 1 . . . Security Status 1 | . . . . . . . . . . . . . . 1 . . . Transport Status 1 | . . . . . . . . . . . . . . 1 . . . Assault Status 1 | . . . 1 . . . . . . . . . . . . . . Hauler Manifests 2 | . . . 1 1 . . . . . . . . . . . . . Registered Components 1 | . . . . . . . . . . . . . . 1 . . . Registered Prototypes 1 | . . . . . . . . . . . . . . 1 . . . Zone Layout 5 | . . . . . . . . . 1 . . 1 3 . . . . Garrison Registry 1 | . . . . . . 1 . . . . . . . . . . . Activate Exoskeleton 2 | . . . . . . . . . . . . . . 2 . . . Disengage Seal 1 | . . . . . . . . . . . . . . . . . 1 Fabricator Hacks 6 | . . . . . 3 . . . . 1 . 2 . . . . . Network Status 1 | . . . . . . . . . . 1 . . . . . . . Load Schematic 2 | . . . . . 1 . . . . . . 1 . . . . . Build 3 | . . . . . 2 . . . . . . 1 . . . . . Repair Station Hacks 8 | . 2 . 4 . . . . . . . . . 2 . . . . Scan Component 5 | . 2 . 2 . . . . . . . . . 1 . . . . Repair 3 | . . . 2 . . . . . . . . . 1 . . . . Recycling Unit Hacks 8 | . . . . . . . 1 . 2 3 2 . . . . . . Process 1 | . . . . . . . 1 . . . . . . . . . . Retrieve Matter 1 | . . . . . . . . . . 1 . . . . . . . Retrieve Components 6 | . . . . . . . . . 2 2 2 . . . . . . Scanalyzer 32 | . . . 2 21 . . . . 9 . . . . . . . . Insert Component 13 | . . . . 9 . . . . 4 . . . . . . . . Analyze 13 | . . . . 9 . . . . 4 . . . . . . . . Retrieve Study 6 | . . . 2 3 . . . . 1 . . . . . . . . Garrison Access Hacks 4 | . . . . . 1 . 1 . . 1 . . 1 . . . . Unlock Access 2 | . . . . . 1 . 1 . . . . . . . . . . Seal Access 2 | . . . . . . . . . . 1 . . 1 . . . . Unauthorized Hacks 52 | . 10 . 9 5 3 . . . 6 8 3 2 4 2 . . . Terminals 48 | . 10 . 9 5 3 . . . 6 5 2 2 4 2 . . . Assimilate 7 | . . . . . . . . . 3 . 1 . 2 1 . . . Botnet 20 | . 4 . 3 4 1 . . . 2 2 1 1 1 1 . . . Operators 8 | . 1 . 1 1 1 . . . 1 1 . 1 1 . . . . Skim 13 | . 5 . 5 . 1 . . . . 2 . . . . . . . Fabricators 3 | . . . . . . . . . . 3 . . . . . . . Report 1 | . . . . . . . . . . 1 . . . . . . . Fabnet 1 | . . . . . . . . . . 1 . . . . . . . Haulers 1 | . . . . . . . . . . 1 . . . . . . . Repair Stations . | . . . . . . . . . . . . . . . . . . Recycling Units 1 | . . . . . . . . . . . 1 . . . . . . Reject 1 | . . . . . . . . . . . 1 . . . . . . Scanalyzers . | . . . . . . . . . . . . . . . . . . Garrison Access . | . . . . . . . . . . . . . . . . . . Data Cores Recovered . | . . . . . . . . . . . . . . . . . . Used . | . . . . . . . . . . . . . . . . . . Hacking Detections 70 | . 7 . 13 11 4 1 2 1 7 7 3 3 5 3 1 1 1 Full Trace Events 10 | . 1 . . 1 1 1 1 1 . . . 1 1 . 1 1 . Feedback Events 1 | . . . . . . . . . . . . . 1 . . . . Hackware Fried 1 | . . . . . . . . . . . . . 1 . . . . Feedback Blocked 1 | . . . . . . . . . . . . . 1 . . . . Robot Schematics Acquired . | . . . . . . . . . . . . . . . . . . Robots Built . | . . . . . . . . . . . . . . . . . . Authchips . | . . . . . . . . . . . . . . . . . . Time . | . . . . . . . . . . . . . . . . . . Total Robot Build Rating . | . . . . . . . . . . . . . . . . . . Part Schematics Acquired 17 | . 1 . . 8 . . . . 4 . 1 1 2 . . . . Parts Built 4 | . . . . . 3 . . . . . . 1 . . . . . Authchips . | . . . . . . . . . . . . . . . . . . Time 120 | . . . . . 64 . . . . . . 56 . . . . . Total Part Build Rating 17 | . . . . . 11 . . . . . . 6 . . . . . Part Studies Acquired 6 | . . . 2 3 . . . . 1 . . . . . . . . Parts Repaired 3 | . . . 2 . . . . . . . . . 1 . . . . Time 89 | . . . 64 . . . . . . . . . 25 . . . . Parts Recycled . | . . . . . . . . . . . . . . . . . . Recycled Matter 6 | . . . . . . . 6 . . . . . . . . . . Retrieved Matter . | . . . . . . . . . . . . . . . . . . Retrieved Components 9 | . . . . . . . . . 5 4 . . . . . . . Parts Scanalyzed 13 | . . . . 9 . . . . 4 . . . . . . . . Part Schematics Acquired 12 | . . . . 8 . . . . 4 . . . . . . . . Parts Damaged 1 | . . . . . . . . . 1 . . . . . . . . Bothacking | -11 -10 -10 -9 -8 -7 -7 -7 -7 -6 -5 -4 -3 -3 -3 -2 -1 -1 ------------ Run | Yrd Mat Min Mat Mat Fac Gar Fac Gar Fac Fac Fac Res Qua Sec Res Acc Com Used RIF Installer 1 | . . . . . . 1 . . . . . . . . . . . Robots Hacked 4 | . . . . . . . 4 . . . . . . . . . . Non-combat 3 | . . . . . . . 3 . . . . . . . . . . Combat 1 | . . . . . . . 1 . . . . . . . . . . Robot Hacks Applied 6 | . . . . . . . 6 . . . . . . . . . . parse_system 3 | . . . . . . . 3 . . . . . . . . . . drop_inventory 1 | . . . . . . . 1 . . . . . . . . . . check_alert 1 | . . . . . . . 1 . . . . . . . . . . mark_security 1 | . . . . . . . 1 . . . . . . . . . . Relay Couplers Released 12 | . . . . . . 4 . 4 . . . . . . 2 2 . Machine Destruction 12 | . . . . . . 4 . 4 . . . . . . 2 2 . Attached 1 | . . . . . . . 1 . . . . . . . . . . Fabnet Peak Effective % 3 | . . . . . . . . . . . 3 1 1 1 . . . Robots Rewired . | . . . . . . . . . . . . . . . . . . Allies Hacked . | . . . . . . . . . . . . . . . . . . Hacks Repelled . | . . . . . . . . . . . . . . . . . . Allies | -11 -10 -10 -9 -8 -7 -7 -7 -7 -6 -5 -4 -3 -3 -3 -2 -1 -1 -------- Run | Yrd Mat Min Mat Mat Fac Gar Fac Gar Fac Fac Fac Res Qua Sec Res Acc Com Total Allies 163 | . . 2 . . . . . . 3 . 1 . 2 1 33 94 27 Largest Group 15 | . . 2 2 . . . . . 1 . . . 1 1 15 10 11 Highest-Rated Group 376 | . . 45 45 . . . . . 26 . . . 26 26 207 142 376 Highest-Rated Ally 234 | . . 31 31 . . . . . 26 . . . 26 26 15 15 234 Total Orders . | . . . . . . . . . . . . . . . . . . Ally Attacks 363 | . . . 34 . . . . . . . . . . . 70 195 64 Total Damage 6498 | . . . 419 . . . . . . . . . . . 1410 3105 1564 Kills 43 | . . . 12 . . . . . . . . . . . 6 17 8 Allies Corrupted 5 | . . . . . . . . . . . . . . . . 5 . Allies Melted . | . . . . . . . . . . . . . . . . . . Intel | -11 -10 -10 -9 -8 -7 -7 -7 -7 -6 -5 -4 -3 -3 -3 -2 -1 -1 ------- Run | Yrd Mat Min Mat Mat Fac Gar Fac Gar Fac Fac Fac Res Qua Sec Res Acc Com Active Infowar (turns) 7052 | . 903 274 2433 1792 171 6 . 41 351 233 113 312 250 173 . . . Sensors 1189 | . . . . . 153 6 . . . 223 113 312 209 173 . . . Terrain 4195 | . 586 274 2433 902 . . . . . . . . . . . . . Structural 1373 | . . . . . 39 . . . 351 230 113 312 250 78 . . . Seismic 706 | . 317 . 389 . . . . . . . . . . . . . . Machine Analysis 983 | . . . . 890 52 . . 41 . . . . . . . . . Robot Analysis Total 1 | . . . . . . . . . 1 . . . . . . . . Derelict Logs Recovered 2 | . . 2 . . . . . . . . . . . . . . . Drone Launches . | . . . . . . . . . . . . . . . . . . Drone Recoveries . | . . . . . . . . . . . . . . . . . . Exploration | -11 -10 -10 -9 -8 -7 -7 -7 -7 -6 -5 -4 -3 -3 -3 -2 -1 -1 ------------- Run | Yrd Mat Min Mat Mat Fac Gar Fac Gar Fac Fac Fac Res Qua Sec Res Acc Com Turns Passed 9045 | 84 1451 274 2471 1809 171 89 144 165 352 236 113 312 250 339 128 521 136 Spaces Moved 9084 | 47 619 151 1106 835 256 146 309 298 689 607 226 627 474 815 319 1306 254 Core 168 | 2 . . . . . . . 32 134 . . . . . . . . Treads 2756 | 45 619 151 1106 835 . . . . . . . . . . . . . Legs 2219 | . . . . . . . . . . . . . . 340 319 1306 254 Wheels . | . . . . . . . . . . . . . . . . . . Hover . | . . . . . . . . . . . . . . . . . . Flight 3941 | . . . . . 256 146 309 266 555 607 226 627 474 475 . . . Fastest Speed 19 | 50 160 160 160 156 27 27 27 27 30 24 28 24 19 19 30 30 30 Average Speed 69 | 155 160 160 160 159 27 27 27 32 36 26 30 27 24 25 30 31 34 Slowest Speed 245 | 160 160 160 240 245 27 27 27 109 100 32 31 28 28 30 30 90 90 Overloaded Moves 367 | . . . . . . . . . . . . . 34 333 . . . Propulsion Burnouts 1 | . . . . . . . . . . . . . . 1 . . . Robots Hopped 35 | . . . . . 2 . 5 2 4 3 1 3 2 13 . . . Potential Cave-ins 2 | . . . . . . . . . . . . . . . . . 2 Cave-ins Triggered 1 | . . . 1 . . . . . . . . . . . . . . Exploration Rate (%) 33 | 5 80 34 80 71 8 32 13 37 20 15 7 18 54 65 12 46 13 Regions Visited 17 Branch Regions 4 Pre-discovered Areas 1 | . . 1 . . . . . . . . . . . . . . . Known Exits Taken 11 | . 1 1 1 . 1 . 1 . 1 1 1 1 1 1 . . . Unknown Exits Taken 4 | 1 . . . 1 . . . . . . . . . . 1 1 . Scrap Searched 1 | . . 1 . . . . . . . . . . . . . . . Spaces Dug 174 | . . . 5 6 1 22 8 8 5 3 3 5 2 4 11 80 11 Terrain Destroyed 961 | . . . 5 6 1 22 8 8 5 3 3 5 2 12 11 130 740 Melee 44 | . . . 5 6 1 . 2 8 5 3 3 5 2 4 . . . Projectile 103 | . . . . . . . . . . . . . . 8 11 73 11 AOE 814 | . . . . . . 22 6 . . . . . . . . 57 729 Terrain Rammed . | . . . . . . . . . . . . . . . . . . Walls Destroyed . | . . . . . . . . . . . . . . . . . . Machines Disabled . | . . . . . . . . . . . . . . . . . . Actions | -11 -10 -10 -9 -8 -7 -7 -7 -7 -6 -5 -4 -3 -3 -3 -2 -1 -1 --------- Run | Yrd Mat Min Mat Mat Fac Gar Fac Gar Fac Fac Fac Res Qua Sec Res Acc Com Total 11060 | 55 928 174 1634 1132 358 187 349 347 750 669 259 748 581 880 344 1379 286 Wait 956 | . 183 13 332 114 43 3 8 2 10 34 4 92 57 15 . 33 13 Move 9005 | 46 618 150 1105 834 252 145 300 293 680 600 223 620 469 792 319 1305 254 Hop 30 | . . . . . 2 . 4 2 4 3 1 3 2 9 . . . Pick Up 110 | 3 18 2 26 18 8 2 2 2 9 5 4 4 5 1 . 1 . Fast Attach 101 | 6 1 . 6 8 . . 1 1 11 7 . 8 14 18 11 6 3 Attach 40 | . 5 . 3 4 11 . . 1 4 2 3 2 1 1 . . 3 Detach 15 | . 1 . 1 . 4 . . 1 2 . . . 1 1 2 1 1 Swap 92 | . 5 . 24 26 4 4 4 . 4 4 2 3 2 6 2 2 . Drop 157 | . 5 3 35 26 15 3 2 5 7 8 3 8 17 6 6 4 4 Fire 274 | . 90 6 84 42 . 2 8 . . . . . . 11 3 20 8 Melee 169 | . . . 17 60 4 3 6 12 19 6 7 8 13 14 . . . Ram 16 | . . . . . . . . 16 . . . . . . . . . Kick 5 | . . . . . . . . . . . . . . . 1 4 . Crush 3 | . 2 . 1 . . . . . . . . . . . . . . Escape Stasis 87 | . . . . . 15 25 14 12 . . 12 . . 6 . 3 . Rewire . | . . . . . . . . . . . . . . . . . . Trap . | . . . . . . . . . . . . . . . . . . Miscellaneous . | . . . . . . . . . . . . . . . . . . Route ------- -11/Scrapyard -10/Materials (discovered 6 exits: *Mat x3 / *Min x2 / Sub) -10/Mines -9/Materials (discovered 5 exits: *Mat x3 / *Min x2) -8/Materials (discovered 3 exits: *Fac x2 / Sto) -7/Factory (discovered 3 exits: Low x2 / Gar) -7/Garrison (discovered 4 exits: *Fac x4) -7/Factory -7/Garrison -6/Factory (discovered 8 exits: *Fac x4 / *Low x2 / Ext x2) -5/Factory (discovered 4 exits: *Fac x4) -4/Factory (discovered 4 exits: *Res x4) -3/Research (discovered 2 exits: *Qua x2) -3/Quarantine (discovered 3 exits: *Res / *Sec / *Frg) -3/Section 7 -2/Research (discovered 2 exits: *Acc / [*Tes]) -1/Access (discovered 2 exits: [Sur] / *Com) -1/Command History --------- Turn | Location | Event 15 | -11/Scrapyard | Discovered new exit (range 16) 85 | -11/Scrapyard | Entered Materials 85 | -10/Materials | Discovered new exit (range 8) 310 | -10/Materials | Build established: Mutant 416 | -10/Materials | Discovered new exit (range 9) 456 | -10/Materials | Identified exit to Mines 932 | -10/Materials | Discovered new exit (range 15) 948 | -10/Materials | Identified exit to Materials 1317 | -10/Materials | Discovered exit to Materials (range 9) 1392 | -10/Materials | Build established: Scavenger-Mutant 1440 | -10/Materials | Identified exit to Subcaves 1536 | -10/Materials | Entered Mines 1594 | -10/Mines | Core integrity fell below 50% 1706 | -10/Mines | Discovered exit to Materials (range 10) 1711 | -10/Mines | Learned location of Zion (-7) 1765 | -10/Mines | Learned location of 1 exit from Materials 1810 | -10/Mines | Entered Materials 1810 | -9/Materials | Accompanied by 2 allies 1810 | -9/Materials | Evolved 2 slots: Propulsion x1, Utility x1 1811 | -9/Materials | Identified exit to Mines 1812 | -9/Materials | Identified exit to Materials 1815 | -9/Materials | Led the pair of lost Derelicts to an unsafe place 2466 | -9/Materials | Discovered exit to Materials (range 16) 2780 | -9/Materials | Repaired Lgt. Treads 3678 | -9/Materials | Core integrity fell below 50% 3884 | -9/Materials | Discovered exit to Materials (range 12) 3892 | -9/Materials | Crushed by falling debris 4050 | -9/Materials | Learned location of 1 exit from Recycling 4090 | -9/Materials | Learned 2 Storage zone layouts 4098 | -9/Materials | Repaired Imp. Terrain Scanner 4120 | -9/Materials | Learned Storage emergency access door positions 4171 | -9/Materials | Learned Storage stockpile data 4195 | -9/Materials | Build established: Mutant 4212 | -9/Materials | Learned Storage emergency access door positions 4281 | -9/Materials | Entered another Materials area 4281 | -8/Materials | Evolved 2 slots: Propulsion x1, Utility x1 4372 | -8/Materials | Central database locked down 4604 | -8/Materials | Build established: Scavenger-Mutant 4895 | -8/Materials | Discovered new exit (range 16) 5621 | -8/Materials | Build established: Mutant 5817 | -8/Materials | Discovered new exit (range 16) 5876 | -8/Materials | Identified exit to Storage 6090 | -8/Materials | Entered Factory 6090 | -7/Factory | Evolved 2 slots: Propulsion x1, Utility x1 6147 | -7/Factory | Identified exit to Lower Caves 6180 | -7/Factory | Fabricated System Shield (x1) 6230 | -7/Factory | Fabricated Chainsword (x2) 6261 | -7/Factory | Identified exit to Garrison 6261 | -7/Factory | Entered Garrison 6288 | -7/Garrison | Installed Relay Interface Framework 6293 | -7/Garrison | Triggered checkpoint 6317 | -7/Garrison | Garrison Relay disabled 6330 | -7/Garrison | Discovered new exit (range 45) 6330 | -7/Garrison | Discovered new exit (range 47) 6330 | -7/Garrison | Discovered new exit (range 55) 6330 | -7/Garrison | Discovered new exit (range 55) 6349 | -7/Garrison | Identified exit to Factory 6350 | -7/Garrison | Entered Factory 6417 | -7/Factory | Build established: Hacker-Sprinter 6494 | -7/Factory | Identified exit to Garrison 6494 | -7/Factory | Entered Garrison 6552 | -7/Garrison | Triggered checkpoint 6569 | -7/Garrison | Garrison Relay disabled 6572 | -7/Garrison | Triggered checkpoint 6624 | -7/Garrison | Discovered new exit (range 12) 6632 | -7/Garrison | Core integrity fell below 50% 6654 | -7/Garrison | Core integrity fell below 20% 6659 | -7/Garrison | Entered Factory 6659 | -6/Factory | Evolved 2 slots: Propulsion x1, Utility x1 6665 | -6/Factory | Lost 5 parts (3n2u) 6727 | -6/Factory | Identified exit to Lower Caves 6727 | -6/Factory | Identified exit to Extension 6825 | -6/Factory | Spotted B-75 Beast 6870 | -6/Factory | Identified exit to Factory 6891 | -6/Factory | Central database locked down 6962 | -6/Factory | Build established: Hacker-Mutant 7009 | -6/Factory | Search patrols dispatched 7011 | -6/Factory | Entered another Factory area 7011 | -5/Factory | Evolved 2 slots: Utility x2 7043 | -5/Factory | Allied Derelicts emerged from ambush trap array 7129 | -5/Factory | Spotted B-75 Beast 7220 | -5/Factory | Identified exit to Factory 7247 | -5/Factory | Entered another Factory area 7247 | -4/Factory | Evolved 2 slots: Utility x2 7255 | -4/Factory | Identified exit to Research 7360 | -4/Factory | Entered Research 7360 | -3/Research | Evolved 2 slots: Utility x2 7450 | -3/Research | Identified exit to Quarantine 7534 | -3/Research | Build established: Wizard-Scout 7551 | -3/Research | Found Prototype Launcher 7551 | -3/Research | Identified Com. Tesla Bomb Launcher 7563 | -3/Research | Found Unknown Launcher 7563 | -3/Research | Identified Fusion Bomb Launcher 7645 | -3/Research | Fabricated Cld. Nuclear Pulse Thruster (x1) 7672 | -3/Research | Entered Quarantine 7679 | -3/Quarantine | Spotted Alpha 7 7684 | -3/Quarantine | Found Alien Launcher 7684 | -3/Quarantine | Identified Sigix Terminator 7702 | -3/Quarantine | Found Alien Slashing Weapon 7702 | -3/Quarantine | Identified Sigix Broadsword 7708 | -3/Quarantine | Found Alien Artifact 7708 | -3/Quarantine | Identified Core Reset Matrix 7708 | -3/Quarantine | Used Core Reset Matrix 7712 | -3/Quarantine | Detected hypermatrix surge 7712 | -3/Quarantine | Sensed 13 artifacts in vicinity 7730 | -3/Quarantine | Found Subatomic Replicator 7731 | -3/Quarantine | Used Subatomic Replicator to replicate Cld. Nuclear Pulse Thruster 7774 | -3/Quarantine | Identified exit to Research 7777 | -3/Quarantine | Hacking Suite fried by hacking feedback 7827 | -3/Quarantine | Repaired Adv. Sensor Array 7903 | -3/Quarantine | Spotted Fortress 7920 | -3/Quarantine | Discovered new exit (range 6) 7920 | -3/Quarantine | Discovered new exit (range 7) 7921 | -3/Quarantine | Identified exit to Section 7 7921 | -3/Quarantine | Identified exit to Protoforge 7922 | -3/Quarantine | Entered Section 7 7923 | -3/Section 7 | Detected hypermatrix surge 7923 | -3/Section 7 | Sensed 18 artifacts in vicinity 7942 | -3/Section 7 | Found Prototype Device 7942 | -3/Section 7 | Identified Adv. Kinecellerator 8022 | -3/Section 7 | Spotted Executioner 8031 | -3/Section 7 | Spotted B-99 Colossus 8044 | -3/Section 7 | Found LRC Insulator 8044 | -3/Section 7 | Installed LRC Insulator, 1 resistance modified: EM +25% 8046 | -3/Section 7 | Found LRC Armor 8046 | -3/Section 7 | Installed LRC Armor, increased core integrity (+250) 8069 | -3/Section 7 | Found Integrated Dissipator 8069 | -3/Section 7 | Installed Integrated Dissipator, increased core heat dissipation (+20) 8075 | -3/Section 7 | Spotted Executioner 8097 | -3/Section 7 | Integrated with Sigix Exoskeleton 8108 | -3/Section 7 | Lost 5 parts (2n2u1w) 8181 | -3/Section 7 | Spotted Alpha 7 8182 | -3/Section 7 | Spotted Alpha 7 8204 | -3/Section 7 | Spotted S7 Guard 8208 | -3/Section 7 | Found Core Membrane 8208 | -3/Section 7 | Installed Core Membrane, gained immunity to corruption 8216 | -3/Section 7 | Scanned by Researcher 8217 | -3/Section 7 | Intercept squad dispatched 8217 | -3/Section 7 | Spotted Investigator 8217 | -3/Section 7 | Spotted Tracker 8222 | -3/Section 7 | Spotted Combat Programmer 8226 | -3/Section 7 | Spotted S7 Guard 8234 | -3/Section 7 | Spotted Executioner 8239 | -3/Section 7 | Destroyed Investigator 8240 | -3/Section 7 | Sigix Exoskeleton integrity reduced to 80% 8256 | -3/Section 7 | Found Integrated Thermoelectric Network 8256 | -3/Section 7 | Installed Integrated Thermoelectric Network, gained heat-energy exchange potential 8261 | -3/Section 7 | Entered Research 8261 | -2/Research | Evolved 2 slots: Weapon x2 8266 | -2/Research | Emitted hypermatrix ping 8271 | -2/Research | Assembled emerged from beneath the floor 8273 | -2/Research | Assembled emerged from beneath the floor 8295 | -2/Research | Spotted Striker 8297 | -2/Research | Assembled emerged from beneath the floor 8305 | -2/Research | Assembled emerged from beneath the floor 8308 | -2/Research | Found Prototype Processor 8308 | -2/Research | Identified Exp. Core Analyzer 8309 | -2/Research | Sigix Exoskeleton integrity reduced to 60% 8320 | -2/Research | Found Exp. Terrain Scan Processor 8326 | -2/Research | Assembled emerged from beneath the floor 8381 | -2/Research | Discovered new exit (range 18) 8385 | -2/Research | Discovered new exit (range 17) 8389 | -2/Research | Entered Access 8389 | -1/Access | Evolved 2 slots: Utility x1, Weapon x1 8394 | -1/Access | Emitted hypermatrix ping 8399 | -1/Access | Assembled emerged from beneath the floor 8417 | -1/Access | Build established: Alien-Sigix 8444 | -1/Access | Assembled emerged from beneath the floor 8446 | -1/Access | Discovered new exit (range 18) 8461 | -1/Access | Garrison activated, responded to threat 8484 | -1/Access | Assembled emerged from beneath the floor 8523 | -1/Access | Intercept squad dispatched 8524 | -1/Access | Assembled emerged from beneath the floor 8533 | -1/Access | Spotted Tracker 8534 | -1/Access | Spotted Tracker 8540 | -1/Access | Assembled emerged from beneath the floor 8550 | -1/Access | Assembled emerged from beneath the floor 8554 | -1/Access | Found Prototype Hackware 8554 | -1/Access | Identified Exp. System Shield 8557 | -1/Access | Spotted Combat Programmer 8571 | -1/Access | Spotted Combat Programmer 8577 | -1/Access | Spotted Executioner 8577 | -1/Access | Spotted Striker 8578 | -1/Access | Spotted Investigator 8586 | -1/Access | Lost 9 allies 8593 | -1/Access | Assembled emerged from beneath the floor 8614 | -1/Access | Destroyed Tracker 8617 | -1/Access | Destroyed Tracker 8630 | -1/Access | Assembled emerged from beneath the floor 8631 | -1/Access | Lost 4 allies 8636 | -1/Access | Energy Cycler disabled 8645 | -1/Access | Intercept squad dispatched 8654 | -1/Access | Sigix Exoskeleton integrity reduced to 40% 8656 | -1/Access | Assembled emerged from beneath the floor 8661 | -1/Access | Spotted Tracker 8661 | -1/Access | Spotted Tracker 8661 | -1/Access | Spotted Tracker 8677 | -1/Access | Assembled emerged from beneath the floor 8691 | -1/Access | Spotted Combat Programmer 8692 | -1/Access | Spotted Combat Programmer 8695 | -1/Access | Lost 4 allies 8709 | -1/Access | Destroyed Tracker 8709 | -1/Access | Destroyed Tracker 8712 | -1/Access | Spotted Combat Programmer 8726 | -1/Access | Sigix Exoskeleton integrity reduced to 20% 8786 | -1/Access | Assembled emerged from beneath the floor 8847 | -1/Access | Assembled emerged from beneath the floor 8871 | -1/Access | Assembled emerged from beneath the floor 8898 | -1/Access | Discovered new exit (range 17) 8910 | -1/Access | Entered Command 8915 | -1/Command | Emitted hypermatrix ping 8920 | -1/Command | Assembled emerged from beneath the floor 8948 | -1/Command | Disengaged cave seal 8948 | -1/Command | Assembled emerged from the dark tunnel 8965 | -1/Command | Assembled emerged from beneath the floor 8985 | -1/Command | Spotted M Guard 8985 | -1/Command | Spotted M Guard 8987 | -1/Command | Spotted Combat Programmer 8987 | -1/Command | Spotted Combat Programmer 8996 | -1/Command | Met MAIN.C 9002 | -1/Command | Lost 6 allies 9013 | -1/Command | Fired Sigix Terminator 9013 | -1/Command | 0b10 Conduit disabled 9027 | -1/Command | Core integrity fell below 50% 9046 | -1/Command | Exoskeleton Destroyed Last Messages --------------- 09031_ Quantum Shear penetrates MAIN.C. 09031_ Destroyed Prototype Energy Gun. 09031_ Quantum Shear penetrates MAIN.C. 09031_ Penetrated by Slug. 09033_ Penetrated by EMDS Slug. 09033_ EMDS Slug penetrates MAIN.C. 09033_ Penetrated by Slug. 09035_ Penetrated by EMDS Slug. 09037_ Penetrated by Slug. 09038_ Penetrated by EMDS Slug. 09040_ Core Membrane filtered system corruption (1). 09040_ Critical hit (Meltdown: +220). 09041_ Quantum Shear penetrates MAIN.C. 09043_ Penetrated by EMDS Slug. 09044_ Quantum Shear penetrates MAIN.C. 09044_ Penetrated by EMDS Slug. 09045_ EMDS Slug penetrates MAIN.C. 09046_ Penetrated by EMDS Slug. 09046_ Sigix Exoskeleton destroyed. Map ----- +----------------------------------------------------+ | ?????????????????????????????????????????????????? | | ?????????????????????????????????????????????????? | | ?????????????????????????????????????????????????? | | ????????????????????????????????#?###########????? | | ???????????????????????????####################### | | ????????????????????????########################## | | ????????????????????? ### ##################### | | ????????????????# ################## | | ?????????????## ################ | | ???????????? ############# | | ?????????? ########### | | ????????? "########## | | ????????# "########## | | ??????? " ######### | | ??????## " ######### | | ??????##"""""";;;;;;;;;;;;;;;;;;;;; " ######### | | ?????"# " ; " ######### | | ????""" " """;;;;;;;;;;;;;;;;;;;; ; " "######## | | ????""" " " ;;;;;;;""""####### | | ????""" " " ; ; ####### | | ??? """ " " ;;;; # ####### | | ??? " " " | | ??? " " " Y | | ??? " " ; p Y | | ??? " " ; p ;;; ########## | | ?? " " ; g MMMX ; ;# #### | | ?? " " ; g MMM ;;;; ########## | | ???+#"" " ; MMM ; ; ######### | | ??? " " " h ; ; ; " ####### | | ??? " " " ; ; ; " "###### | | ??? # " " ; ; " " ####### | | ??? # " " h ; ; " " ####### | | ???? #"""""g ; ; " " ####### | | ???? "%" ; ; " "######## | | ???? " ; ; " "######## | | ????? ; ; " ######### | | ??????##""" ; ; " ######### | | ??????##" " ; ; " ######### | | ???????## " ; " "########## | | ????????# """"""""""";;;;;;;;;""" " "########## | | ?????????# " ########### | | ??????????##""""""""""""""""""""""" ##?########## | | ???????????? # ####????######## | | ?????????????#### ####???????####### | | ???????????????##### ######?????????###### | | ??????????????????##### ######?????????????##### | | ???????????????????????#??#????????????????????### | | ????????????????????????????????????????????????## | | ?????????????????????????????????????????????????? | | ?????????????????????????????????????????????????? | +----------------------------------------------------+ Best States ------------- Heat Dissipation 145 Energy Generation 57 Energy Capacity 450 Matter Stores 300 Matter Capacity 300 Sight Range 16 Robot Scan Range 16 Terrain Scan Range 16 Terrain Scan Density 85 Power Amplification 30 Resistance: KI 50 Resistance: TH 50 Resistance: EX 50 Resistance: EM 75 Resistance: I 50 Resistance: S 50 Resistance: P 50 Evasion (%) 79 Targeting Accuracy 6 Melee Accuracy 24 Recoil Reduction 4 Salvage Targeting 3 Offensive Hacking 54 Defensive Hacking 48 Relay Coupler Types 1 Relay Coupler Value 25 Item Schematics ----------------- Adv. Hacking Suite | -3/Quarantine | Hacked Adv. System Shield | -3/Quarantine | Hacked Robot Schematics ------------------ None Fabricated ------------ System Shield | x1 | -7/Factory Chainsword | x2 | -7/Factory | Preloaded Cld. Nuclear Pulse Thruster | x1 | -3/Research Repaired ---------- Lgt. Treads | 68% | -9/Materials Imp. Terrain Scanner | 31% | -9/Materials Adv. Sensor Array | 29% | -3/Quarantine Studied --------- None Alien Tech Used ----------------- Sigix Terminator Sigix Broadsword Core Reset Matrix Subatomic Replicator LRC Insulator LRC Armor Integrated Dissipator Sigix Exoskeleton Sigix Sheargun Core Membrane Integrated Thermoelectric Network Achievements -------------- Hammer Time Challenges ------------ None Game ------ Seed BackupSalvageJetlance Manual? 0 Play Time 02:09:27 Cumulative 199.5 hours Start 2025.11.26 @ 22:22:03 End 2025.11.27 @ 00:32:29 Sessions 1 Manual Loads 0 Difficulty Rogue Special Mode None Game No. 138 Rogue 138 Adventurer 0 Explorer 0 Win Type - Total 7 Types 5/0/1/1/0/0/0/0/0/0 Lore% 83 Gallery% 75 Achievement% 58 Wizard Run 0 Options --------- Layout 1 ASCII 0 Keyboard 0 Movement Mouse Keybinds 0 Fullscreen 2 Font 24/Smallcaps Map View 50x35 Zoom Use 0% Tactical HUD 1 Map Filters NONE Filters NONE Steam 1 RUN: 0163b742-bc1d-4310-a2e4-50f5a2b305dd